Cogmind - Beta 12 @@@ ROGUE MODE // 2023.11.07 @ 11:15:47 Player: Dima4z Result: Self-destructed Performance ------------- Evolutions (1) 500 Regions Visited (2) 400 Robots Destroyed (8) 40 Value Destroyed (149) 149 Prototype IDs (0) 0 Alien Tech Used (0) 0 Bonus (0) 0 TOTAL SCORE: 1089 Bonus ------- None Cogmind --------- Core Integrity 303/400 Matter 300/300 Energy 100/100 System Corruption 0% Temperature Cool (0) Movement Core (100) Ox1 Location -9/Materials Parts ------- > --- POWER (1) -------- (None) > --- PROPULSION (3) --- (None) > --- UTILITY (3) ------ Small Storage Unit Improved Terrain Scanner > --- WEAPON (2) ------- (None) > --- INVENTORY (8) ---- Light Nuclear Core Wheel Hover Unit Hover Unit Improved Heat Sink Signal Interpreter Improved Terrain Scanner Medium Laser Peak State ------------ > --- POWER ------------ Light Ion Engine > --- PROPULSION ------- Hover Unit Hover Unit > --- UTILITY ---------- Small Storage Unit Improved Terrain Scanner Improved Terrain Scanner > --- WEAPON ----------- EM Pulse Gun Mining Laser > --- INVENTORY -------- Light Nuclear Core Wheel Hover Unit Hover Unit Improved Heat Sink Signal Interpreter Medium Laser [Rating: 13] Favorites ----------- Power Light Ion Engine Engine Light Ion Engine Propulsion Hover Unit Wheel Wheel Hover Unit Hover Unit Utility Improved Terrain Scanner Device Improved Terrain Scanner Storage Small Storage Unit Weapon EM Pulse Gun Energy Gun EM Pulse Gun Special Weapon Mining Laser Build | -11 -10 -9 ------- Run | Jun Mat Mat Slots Evolved 2 | . . 2 Power . | . . . Propulsion 1 | . . 1 Utility 1 | . . 1 Weapon . | . . . Parts Attached 19 | 7 10 2 Power 2 | 1 1 . Engine 2 | 1 1 . Core . | . . . Reactor . | . . . Propulsion 6 | 2 3 1 Treads . | . . . Leg . | . . . Wheel 2 | 2 . . Hover 4 | . 3 1 Flight . | . . . Utility 6 | 2 3 1 Device 2 | 1 . 1 Storage 4 | 1 3 . Processor . | . . . Hackware . | . . . Protection . | . . . Artifact . | . . . Weapon 5 | 2 3 . Energy Gun 3 | 1 2 . Energy Cannon . | . . . Ballistic Gun . | . . . Ballistic Cannon . | . . . Launcher . | . . . Special Weapon 2 | 1 1 . Impact Weapon . | . . . Slashing Weapon . | . . . Piercing Weapon . | . . . Special Melee Weapon . | . . . Unidentified Prototypes . | . . . Parts Lost 7 | . 2 5 Power 2 | . 1 1 Propulsion 3 | . 1 2 Utility . | . . . Weapon 2 | . . 2 Highest Loss Streak 4 | . 2 4 To Critical Strikes . | . . . Average Slot Usage (%) 94 | . 97 71 Engine 13 | . 13 9 Wheel 1 | . 1 . Hover 25 | . 26 17 Device 14 | . 14 18 Storage 13 | . 13 11 Energy Gun 13 | . 14 3 Special Weapon 11 | . 11 11 Naked Turns . | . . . Heaviest Build 13 | 12 13 13 Greatest Support 20 | 20 20 12 Greatest Overweight (x) 3 | 3 3 3 Average Overweight (x) . | 1 . . Largest Inventory Capacity 15 | 8 15 8 Average Capacity 7 | 7 7 8 Most Carried 8 | 7 8 8 Average Carried 7 | 2 7 7 Final Capacity 8 | 8 8 8 Final Carried 8 | 7 8 8 Class Distribution -------------------- 92% | Mutant 7% | Scavenger-Mutant Dominant Class ---------------- Mutant | -10/Materials Scavenger-Mutant | -9/Materials Resources | -11 -10 -9 ----------- Run | Jun Mat Mat Matter Collected 365 | 270 95 . Remotely . | . . . Salvage Created 307 | 160 147 . Parts 24 | 11 13 . Haulers Intercepted . | . . . Recyclers Shooed . | . . . Parts Field Recycled . | . . . Retrieved Matter . | . . . Parts Self-Destructed . | . . . Prevented . | . . . Kills | -11 -10 -9 ------- Run | Jun Mat Mat Combat Hostiles Destroyed 2 | . 2 . Guns 1 | . 1 . AOE 1 | . 1 . Classes Destroyed 5 | 2 3 . Tunneler 2 | 2 . . Recycler 1 | 1 . . Operator 1 | . 1 . Watcher 2 | . 2 . Grunt 2 | . 2 . Best Kill Streak 2 | 2 2 . Combat Bots Only 2 | . 2 . Max Kills in Single Turn 1 | 1 1 . Gunslinging . | . . . Exploded 1 | . 1 . Melee . | . . . Uniques/NPCs Destroyed . | . . . Combat | -11 -10 -9 -------- Run | Jun Mat Mat Damage Taken 437 | . 189 248 Core 129 | . 32 97 Absorbed by Shields . | . . . Core Remaining (%) 93 | 100 87 . Volleys Fired 36 | 12 20 4 Largest 1 | 1 1 1 Hottest 100 | 40 100 100 Shots Fired 36 | 12 20 4 Gun 30 | 12 18 . Cannon . | . . . Launcher . | . . . Special 6 | . 2 4 Kinetic . | . . . Thermal 6 | . 2 4 Explosive . | . . . Electromagnetic 30 | 12 18 . Robot Hit Streak 7 | 7 5 2 Robot Miss Streak 4 | 4 2 1 Penetration Max . | . . . Secondary Targets . | . . . Shots Hit Robots 21 | 8 11 2 Core Hits 11 | 4 7 . Critical Kills . | . . . Critical Parts Destroyed . | . . . Critical Strikes . | . . . Melee Attacks . | . . . Impact . | . . . Slashing . | . . . Piercing . | . . . Sneak Attacks . | . . . Combat Hostiles . | . . . Follow-up Attacks . | . . . Damage Inflicted 379 | 103 228 48 Guns 291 | 103 188 . Cannons . | . . . Explosions 40 | . 40 . Melee . | . . . Ramming . | . . . Kinetic . | . . . Thermal 88 | . 40 48 Explosive . | . . . Electromagnetic 291 | 103 188 . Impact . | . . . Slashing . | . . . Piercing . | . . . Highest Corruption . | . . . Average Corruption . | . . . Corruption Purged . | . . . Corruption Blocked . | . . . Overload Shots . | . . . Overflow Damage . | . . . Projectiles . | . . . Explosions . | . . . Melee . | . . . Knockbacks . | . . . Impact . | . . . Kinetic . | . . . Secondary . | . . . Self-Inflicted Damage 38 | . 38 . Shots 1 | . 1 . Rammed . | . . . Targets Rammed . | . . . Kicked . | . . . Crushed . | . . . Highest Temperature 108 | . 71 108 Average Temperature 31 | . 21 54 Received Heat Transfer 183 | . 87 96 Siege Activations . | . . . Robots Corrupted 1 | . 1 . Combat Hostiles . | . . . Parts Fried 3 | 1 2 . Impact Corruptions . | . . . Robots Melted . | . . . Combat Hostiles . | . . . Parts Melted . | . . . Heat Transferred 200 | . 100 100 Parts Sabotaged . | . . . Parts Stolen . | . . . Parts Stripped . | . . . Power Chain Reactions 1 | . 1 . Missiles Intercepted . | . . . Alert | -11 -10 -9 ------- Run | Jun Mat Mat Peak Influence 161 | 15 161 25 Initial 9 | . 9 9 Average 36 | 7 43 11 Maximum Alert Level . | . . . Low Security (%) 100 | 100 100 100 Level 1 . | . . . Level 2 . | . . . Level 3 . | . . . Level 4 . | . . . Level 5 . | . . . High Security . | . . . Max Security . | . . . Squads Dispatched . | . . . Investigation . | . . . Extermination . | . . . Reinforcement . | . . . Assault . | . . . Garrison . | . . . Intercept . | . . . Searches Triggered . | . . . Construction Impeded . | . . . Haulers Reinforced . | . . . Active Scanning Responses . | . . . Cargo Convoy Interrupts . | . . . Stealth | -11 -10 -9 --------- Run | Jun Mat Mat Distress Signals . | . . . Communications Jammed . | . . . Distress Signals . | . . . Times Spotted 14 | . 9 5 Peak Tracking Total 5 | . 2 5 Tactical Retreats 3 | . 1 2 Traps | -11 -10 -9 ------- Run | Jun Mat Mat Traps Triggered . | . . . Indirectly . | . . . Trap Hack Attempts . | . . . Triggered . | . . . Disarmed . | . . . Reprogrammed . | . . . Reused . | . . . Traps Extracted . | . . . Installed . | . . . Triggered . | . . . Machines | -11 -10 -9 ---------- Run | Jun Mat Mat Machines Disabled . | . . . Max in Single Turn . | . . . Machines Repaired . | . . . Machines Sabotaged . | . . . Overloaded Fab Kills . | . . . Hacking | -11 -10 -9 --------- Run | Jun Mat Mat Machines Accessed 6 | . 5 1 Terminals 6 | . 5 1 Fabricators . | . . . Repair Stations . | . . . Recycling Units . | . . . Scanalyzers . | . . . Garrison Access . | . . . Total Hacks 17 | . 13 4 Successful 8 | . 6 2 Failed 9 | . 7 2 Catastrophic 1 | . 1 . Database Lockouts . | . . . Manual . | . . . Terminals 17 | . 13 4 Fabricators . | . . . Repair Stations . | . . . Recycling Units . | . . . Scanalyzers . | . . . Garrison Access . | . . . Terminal Hacks 8 | . 6 2 Record 1 | . 1 . Locate Traps 2 | . 2 . Dispatch Records 1 | . . 1 Security Status 1 | . 1 . Surveillance Status 2 | . 2 . Zone Layout 1 | . . 1 Fabricator Hacks . | . . . Repair Station Hacks . | . . . Recycling Unit Hacks . | . . . Scanalyzer . | . . . Garrison Access Hacks . | . . . Unauthorized Hacks . | . . . Terminals . | . . . Fabricators . | . . . Repair Stations . | . . . Recycling Units . | . . . Scanalyzers . | . . . Garrison Access . | . . . Data Cores Recovered 1 | . 1 . Used . | . . . Hacking Detections 5 | . 5 . Full Trace Events 1 | . 1 . Feedback Events . | . . . Feedback Blocked . | . . . Robot Schematics Acquired . | . . . Robots Built . | . . . Authchips . | . . . Time . | . . . Total Robot Build Rating . | . . . Part Schematics Acquired . | . . . Parts Built . | . . . Authchips . | . . . Time . | . . . Total Part Build Rating . | . . . Parts Repaired . | . . . Time . | . . . Parts Recycled . | . . . Recycled Matter . | . . . Retrieved Matter . | . . . Retrieved Components . | . . . Parts Scanalyzed . | . . . Part Schematics Acquired . | . . . Parts Damaged . | . . . Bothacking | -11 -10 -9 ------------ Run | Jun Mat Mat Used RIF Installer . | . . . Robots Hacked . | . . . Non-combat . | . . . Combat . | . . . Robot Hacks Applied . | . . . Relay Couplers Released . | . . . Fabnet Peak Effective % . | . . . Robots Rewired . | . . . Allies Hacked . | . . . Hacks Repelled . | . . . Allies | -11 -10 -9 -------- Run | Jun Mat Mat Total Allies . | . . . Largest Group . | . . . Highest-Rated Group . | . . . Highest-Rated Ally . | . . . Total Orders . | . . . Ally Attacks . | . . . Total Damage . | . . . Kills . | . . . Allies Corrupted . | . . . Allies Melted . | . . . Intel | -11 -10 -9 ------- Run | Jun Mat Mat Robot Analysis Total . | . . . Derelict Logs Recovered . | . . . Drone Launches . | . . . Drone Recoveries . | . . . Exploration | -11 -10 -9 ------------- Run | Jun Mat Mat Turns Passed 1131 | 138 894 99 Spaces Moved 535 | 85 380 70 Core 56 | 45 3 8 Treads . | . . . Legs . | . . . Wheels 86 | 40 46 . Hover 393 | . 331 62 Flight . | . . . Fastest Speed 50 | 50 56 56 Average Speed 72 | 114 61 80 Slowest Speed 200 | 200 200 200 Overloaded Moves . | . . . Propulsion Burnouts . | . . . Robots Hopped . | . . . Cave-ins Triggered . | . . . Exploration Rate (%) 15 | 5 32 10 Regions Visited 2 Branch Regions . Pre-discovered Areas . | . . . Known Exits Taken . | . . . Unknown Exits Taken 2 | 1 1 . Scrap Searched . | . . . Spaces Dug 2 | . 2 . Terrain Destroyed 9 | . 8 1 Melee . | . . . Projectile 3 | . 2 1 AOE 6 | . 6 . Terrain Rammed . | . . . Walls Destroyed . | . . . Machines Disabled . | . . . Actions | -11 -10 -9 --------- Run | Jun Mat Mat Total 1231 | 110 1020 101 Wait 605 | . 582 23 Move 533 | 84 379 70 Hop . | . . . Pick Up 22 | 7 15 . Fast Attach 13 | 7 6 . Attach 6 | . 4 2 Detach 3 | . 1 2 Swap . | . . . Drop 13 | . 13 . Fire 36 | 12 20 4 Melee . | . . . Ram . | . . . Kick . | . . . Crush . | . . . Escape Stasis . | . . . Rewire . | . . . Trap . | . . . Miscellaneous . | . . . Route ------- -11/Junkyard -10/Materials -9/Materials History --------- Turn | Location | Event 22 | -11/Junkyard | Discovered new exit (range 16) 139 | -11/Junkyard | Entered Materials 315 | -10/Materials | Build established: Mutant 1025 | -10/Materials | Discovered new exit (range 9) 1033 | -10/Materials | Entered another Materials area 1033 | -9/Materials | Evolved 2 slots: Propulsion x1, Utility x1 1132 | -9/Materials | Self-destructed Last Messages --------------- Found 26 active squads: 10x Security 5x Surveillance 5x Patrol 6x Transport >>Layout(Zone) Retrieving Zone 2P layout... Downloaded map data. 01085_ K-01 Serf collects debris. 01099_ U-05 Engineer builds a Wall. 01108_ K-01 Serf collects debris. 01116_ Hover Unit destroyed. 01117_ K-01 Serf collects debris. 01119_ Hover Unit destroyed. 01120_ K-01 Serf collects debris. 01121_ Lgt. Ion Engine destroyed. 01124_ K-01 Serf cleans the Electrolysis Chamber. 01125_ K-01 Serf collects debris. 01130_ K-01 Serf cleans the Electrolysis Chamber. 01132_ Mining Laser destroyed. Map ----- +----------------------------------------------------+ | ?????????????????????????????????????????????????? | | ?????????????????????????????????????????????????? | | ?????????????????????????????????????????????????? | | ?????????????????????????????????????????????????? | | ?????????????????????????????????????????????????? | | ?????????????????????????????????????????????????? | | ?????????????????????????????????????????????????? | | ?????????????????????????????????????????????????? | | ?????????????????????????????????????????????????? | | ??????????????"" #??# #?????????# #????? | | ?????????????? #??# ##################????? | | ??????????????+####### ####### ????? | | ?????????????? # ????? | | ?????????????? # ????? | | ?????????????? # ????? | | ?????????????? + ????? | | ?????????????? ########????? | | ?????????????? """ """ """ ############# | | ?????????????? """ """ """ # | | ??????????? ?? """ """ """ # || """ | | ?????????????? "Y" + || """ | | ?????????????? """ # | """ | | ??????????????+############ # | | ?????????????? # gg # #####+####### | | ?????????????? # """l# T #??## ####### | | ?????????????? # """@# #??# | | ?????????????? # """g# #### | | ?????????????? # k + | | ?????????????? """ # """ # #####+####### | | ?????????????? """ # """ ####+####### ???? | | ?????????????? """ # k""" # #?#?# """ ""????? | | ??????????????###### # #???# """ ""????? | | ????????????????#??# " " # #?### """ ""????? | | ????????????#?????## "R" # """ #???# ????? | | ?????????????????#?# """ # """ #?#?# "Y" ????? | | ???????????????#???# # """ #???# """ ????? | | ??????????????#????###############???# ????? | | ???????????????????????#???#?????????########????? | | | | | | | | | | | | | | | | | | | | | | | | | +----------------------------------------------------+ Best States ------------- Heat Dissipation 28 Energy Generation 10 Energy Capacity 125 Matter Stores 300 Matter Capacity 300 Sight Range 16 Terrain Scan Range 16 Terrain Scan Density 10 Evasion (%) 53 Item Schematics ----------------- None Robot Schematics ------------------ None Fabricated ------------ Nothing Alien Tech Used ----------------- None Achievements -------------- None Challenges ------------ None Game ------ Seed ShieldForceSheargun Manual? 0 Play Time 00:13:48 Cumulative 14.1 hours Start 2023.11.07 @ 11:03:30 End 2023.11.07 @ 11:15:47 Sessions 1 Manual Loads 0 Difficulty Rogue Special Mode None Game No. 15 Rogue 15 Adventurer 0 Explorer 0 Win Type - Total 0 Types 0/0/0/0/0/0/0/0/0 Lore% 8 Gallery% 25 Achievement% 21 Wizard Run 0 Options --------- ASCII 0 Keyboard 1 Movement Arrows Keybinds 0 Fullscreen 1 Font 18/X11 Map View 76x50 Tactical HUD 1 Map Filters NONE Filters NONE Steam 1 RUN: 559f10f7-3d20-40f1-9f38-eec83bb31f2d